[Event "Croatian 1A League 2022"]
[Site "Porec"]
[Date "2022.09.24"]
[Round "1.1"]
[White "Shevchenko, Kirill"]
[Black "Saric, Ivan"]
[Result "0-1"]
[ECO "A21"]
[WhiteElo "2645"]
[BlackElo "2668"]
[Annotator "TA"]
[PlyCount "56"]
[EventDate "2022.09.24"]
[EventType "team-tourn"]
[EventCountry "CRO"]
[SourceTitle "playchess.com"]
[Source "ChessBase"]
[SourceQuality "1"]
[TimeControl "40/5400+30:1800+30"]

{[%evp 11,56,0,13,15,16,18,16,0,0,0,0,0,0,0,0,-21,-22,-77,-90,-86,-37,-54,-73,-179,-180,-180,-175,-299,-291,-327,-324,-312,-314,-308,-291,-531,-550,-510,-385,-583,-583,-595,-591,-570,-390,-383,-380]} 1. c4 {[%emt 0:01:00]} e5 {[%emt 0:01:00]} 2. g3 {[%emt 0:00:00]} g6 {[%emt 0:03:30]} 3. Bg2 {[%emt 0:02:00]} Bg7 {[%emt 0:00:30]} 4. Nc3 {[%emt 0:00:30]} d6 {[%emt 0:40:30]} 5. d3 {[%emt 1:24:17]} Ne7 {[%emt 0:00:30]} 6. e3 {[%emt 0:00:30]} O-O {[%emt 0:00:30]} 7. Nge2 {[%emt 0:00:02] A21: English Opening: 1...e5 2 Nc3.} c5 $5 {[%emt 0:00:30][%mdl 4] Exploring less charted territory.} 8. a3 {[%emt 0:00:30]} Nbc6 {[%emt 0:00:30]} 9. b4 {[%emt 0:00:30] The position is equal.} cxb4 {[%emt 0:00:30]} 10. axb4 {[%emt 0:00:30]} Nxb4 {[%emt 0:00:30]} 11. Ba3 {[%emt 0:00:35] [#]} Nec6 $146 {[%emt 0:00:30]} ({Predecessor:} 11... Nbc6 12. O-O Be6 13. Rb1 Qd7 14. Ne4 Nc8 15. N2c3 a6 16. Ng5 Bf5 17. Nd5 Be6 {0-1 (63) Klekowski,M (2473)-Nurkiewicz,M (2334) Zgierz 2019}) 12. O-O {[%emt 0:00:38]} a5 {[%emt 0:00:30]} 13. Nb5 {[%emt 0:00:46]} Bf5 {[%emt 0:00:30]} 14. Bxb4 {[%emt 0:00:46]} (14. e4 $11 Bg4 15. h3) 14... Nxb4 $17 {[%emt 0:00:30]} 15. Bxb7 {[%emt 0:00:38]} Bxd3 {[%emt 0:00:30]} (15... Rb8 $17 16. Be4 Bg4) 16. Bxa8 $15 {[%emt 0:01:39]} Qxa8 {[%emt 0:01:30]} 17. Ra3 {[%emt 0:00:30]} (17. Nbc3 $17) 17... Bxc4 $19 {[%emt 0:00:30]} 18. Nxd6 {[%emt 0:00:30]} Be6 {[%emt 0:00:30] [#] White must now prevent ...Bh3. This bishop pair is nice.} ({Weaker is} 18... Rd8 19. Nxc4 Rxd1 20. Rxd1) 19. e4 {[%emt 0:00:30]} (19. Qb1 $142) 19... Rd8 {[%emt 0:01:30][%cal Bf8d8,Bd8d6,Bd6d2,Bd2c2,Bc2f2,Bf2b2][%mdl 32]} 20. Qa4 {[%emt 0:00:30][%cal Oa4b5]} Bf8 {[%emt 0:01:30]} ({Not} 20... Rxd6 21. Qxb4 axb4 22. Rxa8+ Bf8 23. Rb1 $15) 21. Qxa5 {[%emt 0:00:30]} Qxa5 {[%emt 0:00:30]} 22. Rxa5 {[%emt 0:00:31]} Rxd6 {[%emt 0:00:00]} 23. Rb1 $2 {[%emt 0:00:14]} (23. Rxe5 Bc4 24. Nf4) 23... Rd2 {[%emt 0:00:00]} 24. Nc3 {[%emt 0:00:30]} Kg7 {[%emt 0:01:30]} 25. Rb5 {[%emt 0:02:24]} (25. Rxe5 {keeps fighting.} Nd3 26. Rxe6 fxe6 27. Rd1 Rxd1+ 28. Nxd1) 25... Rc2 {[%emt 0:04:30]} 26. Nd1 {[%emt 0:01:03]} Nd3 {[%emt 0:00:30]} 27. Ne3 {[%emt 0:00:51]} Rxf2 {[%emt 0:01:30] [#] And now ...Re2 would win.} 28. Rd1 {[%emt 0:00:23]} Rb2 {[%emt 0:00:30] Weighted Error Value: White=0.47/Black=0.23 (precise)} 0-1

[Event "Croatian 1A League 2022"]
[Site "Porec"]
[Date "2022.09.24"]
[Round "1.2"]
[White "Banusz, Tamas"]
[Black "Erdos, Viktor"]
[Result "1/2-1/2"]
[ECO "E06"]
[WhiteElo "2622"]
[BlackElo "2597"]
[Annotator "TA"]
[PlyCount "40"]
[EventDate "2022.09.24"]
[EventType "team-tourn"]
[EventCountry "CRO"]
[SourceTitle "playchess.com"]
[Source "ChessBase"]
[SourceQuality "1"]
[TimeControl "40/5400+30:1800+30"]

{[%evp 12,40,0,11,0,0,0,0,0,0,10,12,4,0,0,0,0,0,0,0,0,0,0,0,0,0,0,0,0,0,0]} 1. Nf3 {[%emt 0:01:00]} Nf6 {[%emt 0:01:00]} 2. g3 {[%emt 0:00:00]} d5 {[%emt 0:00:30]} 3. Bg2 {[%emt 0:00:00]} e6 {[%emt 0:00:00]} 4. c4 {[%emt 0:01:30]} Be7 {[%emt 0:01:00]} 5. d4 {[%emt 0:00:30]} O-O {[%emt 0:00:00]} 6. Nc3 {[%emt 0:00:30]} dxc4 {[%emt 0:02:00]} 7. Ne5 {[%emt 0:12:30] The position is equal.} Qd6 {[%emt 0:05:30] E06: Closed Catalan: Early deviations.} 8. O-O {[%emt 0:00:30]} Qa6 {[%emt 0:00:30]} 9. a4 {[%emt 0:00:30]} Nbd7 {[%emt 0:00:30]} 10. Nb5 {[%emt 0:00:30]} Nxe5 {[%emt 0:00:30]} 11. dxe5 {[%emt 0:00:30]} Rd8 {[%emt 0:00:30]} 12. exf6 {[%emt 0:00:30]} Rxd1 {[%emt 0:00:30]} 13. Rxd1 {[%emt 0:00:30]} Bd6 {[%emt 0:00:30]} (13... gxf6 $2 14. Nxc7 Qa5 15. Nxa8 $18) 14. Bf4 $1 {[%emt 0:00:30][%cal Rb5d6]} Qa5 {[%emt 0:00:30]} 15. Bd2 $36 {[%emt 0:00:30][%mdl 2048] [#] White is more active.} Qb6 $5 $146 {[%emt 0:00:30][%mdl 8] An interesting novelty.} ({Predecessor:} 15... Qa6 16. Bc3 Qb6 17. Bd4 Qa5 18. Bc3 Qb6 19. Bd4 Qa5 20. Bc3 Qb6 {½-½ (20) Maghsoodloo,P (2674)-Wang,H (2758) Caleta 2020}) 16. Be3 {[%emt 0:00:30]} Qa5 {[%emt 0:00:30]} 17. Bd2 {[%emt 0:00:30]} Qb6 {[%emt 0:00:30]} 18. Be3 {[%emt 0:00:30]} Qa5 {[%emt 0:00:30]} 19. Bd2 {[%emt 0:00:30]} Qb6 {[%emt 0:00:30]} 20. Be3 {[%emt 0:00:30]} Qa5 {[%emt 0:00:30] An even fight not without its subleties.  Weighted Error Value: White=0.00 (flawless) /Black=0.00 (flawless)} 1/2-1/2

[Event "Croatian 1A League 2022"]
[Site "Porec"]
[Date "2022.09.24"]
[Round "1.3"]
[White "Muse, Drazen"]
[Black "Balogh, Csaba"]
[Result "0-1"]
[ECO "E14"]
[WhiteElo "2311"]
[BlackElo "2583"]
[Annotator "TA"]
[PlyCount "110"]
[EventDate "2022.09.24"]
[EventType "team-tourn"]
[EventCountry "CRO"]
[SourceTitle "playchess.com"]
[Source "ChessBase"]
[SourceQuality "1"]
[TimeControl "40/5400+30:1800+30"]

{[%evp 21,110,-8,-17,-31,-30,-28,-16,-28,-26,-45,-52,-47,0,-42,-48,-57,-57,-66,-47,-68,-37,-31,0,-87,-47,-104,-61,-97,-104,-108,-108,-107,-107,-107,-111,-93,-99,-99,-99,-100,-92,-107,-95,-107,-105,-112,-117,-107,-102,-105,-115,-142,-137,-144,-143,-162,-120,-132,-81,-100,-100,-131,-119,-206,-200,-195,-181,-185,-175,-200,-225,-229,-210,-217,-209,-312,-304,-413,-413,-413,-413,-806,-806,-422,-427,-799,-669,-451,-451,-29978,-29979]} 1. d4 {[%emt 0:01:00]} Nf6 {[%emt 0:01:00]} 2. Nf3 {[%emt 0:00:30]} e6 {[%emt 0:00:30]} 3. e3 {[%emt 0:00:30]} b6 {[%emt 0:04:30]} 4. Bd3 {[%emt 0:00:00]} Bb7 {[%emt 0:00:00]} 5. O-O {[%emt 0:00:00]} c5 {[%emt 0:00:00]} 6. c4 {[%emt 0:03:30]} Be7 {[%emt 0:11:30]} 7. Nc3 {[%emt 0:00:30]} cxd4 {[%emt 0:00:30]} 8. exd4 {[%emt 0:00:00]} d5 {[%emt 0:00:00]} 9. cxd5 {[%emt 0:02:00]} Nxd5 {[%emt 0:00:00]} 10. Bb5+ {[%emt 0:03:30]} Bc6 {[%emt 0:01:30]} 11. Qa4 {[%emt 0:03:30]} Qd7 $1 {[%emt 0:00:30] ...Nxc3 is the strong threat. 11...Qd7 is better than 11...Bxb5.} 12. Nxd5 {[%emt 0:03:30] E14: Queen's Indian: Classical Variation (4 e3).} Qxd5 {[%emt 0:00:30]} 13. Bxc6+ {[%emt 0:00:30]} Nxc6 {[%emt 0:00:30]} 14. Be3 {[%emt 0:02:30] The position is equal.} b5 $5 {[%emt 0:22:30][%mdl 4] Leaves trodden paths.} 15. Qa6 {[%emt 0:07:30]} Nb4 {[%emt 0:22:30]} 16. Qa5 {[%emt 0:00:30]} Nc6 {[%emt 0:00:30]} 17. Qa6 {[%emt 0:00:30]} O-O {[%emt 0:02:30]} 18. Rfc1 {[%emt 0:05:30]} Nb4 $36 {[%emt 0:01:30][%mdl 2048] Black is more active.} 19. Qa5 {[%emt 0:00:00]} Bd6 {[%emt 0:04:30]} 20. Rc3 {[%emt 0:14:00]} Nc6 {[%emt 0:01:30] Black is more active.} 21. Qa6 {[%emt 0:00:00]} Nb4 {[%emt 0:00:30]} ({Black should try} 21... Ne7 $15) 22. Qa5 $1 $17 {[%emt 0:00:00] [#]} Rab8 $146 {[%emt 0:19:14] Threatens to win with ...Nc6.} ({Predecessor:} 22... Rfb8 23. Ne5 f6 24. Nd7 Rb7 25. Nc5 Nc6 26. Qa3 b4 27. Qa4 bxc3 28. Nxb7 Rb8 29. Nc5 cxb2 30. Rb1 Bxc5 31. dxc5 Qd3 {0-1 (27) Frey Beckman,K (2480)-Yudasin,L (2405) Budapest 1982}) 23. Ne5 {[%emt 0:03:30] Prevents Nc6.} ({White should play} 23. Rcc1 $15) 23... Qb7 {[%emt 0:01:18]} 24. Rac1 {[%emt 0:06:30]} Nd5 {[%emt 0:00:14] White must now prevent ...Bb4.} 25. Rc6 {[%emt 0:00:30]} Bb4 {[%emt 0:00:39][%cal Bd6b4,Bb4d2,Bd2e3][%mdl 32]} 26. Qa6 {[%emt 0:00:30]} Nxe3 {[%emt 0:00:05]} 27. Qxb7 {[%emt 0:01:30]} Rxb7 {[%emt 0:00:04]} 28. fxe3 {[%emt 0:00:30]} Bd2 $1 {[%emt 0:00:07][%csl LRc1,LRe3]} 29. Rd1 {[%emt 0:00:00]} Bxe3+ {[%emt 0:00:07]} 30. Kf1 {[%emt 0:00:00]} Rd8 {[%emt 0:01:46]} 31. Ke2 {[%emt 0:00:30]} Bg5 {[%emt 0:02:11]} 32. Nf3 {[%emt 0:01:30]} Bf6 {[%emt 0:00:15]} 33. g4 {[%emt 0:00:30]} h6 {[%emt 0:00:49]} 34. h4 {[%emt 0:00:30]} Rbd7 {[%emt 0:00:58][%cal Rf6d4]} 35. Ke3 {[%emt 0:01:30]} Rd5 {[%emt 0:01:12] Inhibits g5.} 36. Ke4 {[%emt 0:01:30]} g5 {[%emt 0:01:21]} 37. hxg5 {[%emt 0:00:30]} hxg5 {[%emt 0:00:01]} 38. b4 {[%emt 0:01:30]} R8d7 {[%emt 0:01:03]} 39. Rc5 {[%emt 0:00:30]} Be7 {[%emt 0:00:48]} (39... Bd8 $142 $1 40. Rxd5 Rxd5) 40. Rxd5 {[%emt 0:00:00]} Rxd5 {[%emt 0:00:00][%mdl 4096] Endgame KRB-KRN} 41. a3 {[%emt 0:00:00] [#]} Bd8 $1 {[%emt 0:12:08]} 42. Rc1 {[%emt 0:09:30]} (42. Ng1 $17 {is a better defense.}) 42... Bb6 $19 {[%emt 0:00:10]} 43. Rc8+ {[%emt 0:00:00]} Kg7 {[%emt 0:00:30]} 44. Re8 {[%emt 0:01:00]} Rd7 {[%emt 0:01:02]} 45. Kd3 {[%emt 0:10:30]} f5 {[%emt 0:04:35]} 46. gxf5 {[%emt 0:00:30]} exf5 {[%emt 0:00:08] Hoping for ...g4.} 47. Nxg5 {[%emt 0:01:30]} Rxd4+ {[%emt 0:00:24]} 48. Ke2 {[%emt 0:00:30]} (48. Kc2 $142 Rg4 49. Nf3) 48... Kf6 {[%emt 0:01:10]} 49. Nh7+ {[%emt 0:02:30]} Kg6 {[%emt 0:01:43]} 50. Nf8+ {[%emt 0:00:30]} Kf7 {[%emt 0:00:12]} 51. Rb8 {[%emt 0:00:30]} (51. Re5 $142 Kxf8 52. Rxf5+ Ke7 53. Rxb5) 51... Re4+ {[%emt 0:08:28]} 52. Kf3 {[%emt 0:00:30]} Re3+ {[%emt 0:01:23]} 53. Kf4 {[%emt 0:05:30] [#]} (53. Kg2 $142 Rd3 54. Nh7) 53... Bc7+ $1 {[%emt 0:00:12]} 54. Kxe3 {[%emt 0:00:00] Threatening mate with Rb7.} Bxb8 {[%emt 0:00:04]} 55. Nd7 {[%emt 0:00:00]} (55. Nh7 $19) 55... Bd6 {[%emt 0:00:06] Weighted Error Value: White=0.51/Black=0.09 (flawless)} 0-1

[Event "Croatian 1A League 2022"]
[Site "Porec"]
[Date "2022.09.24"]
[Round "1.4"]
[White "Kuljasevic, Davorin"]
[Black "Trbojevic, Mladen"]
[Result "1-0"]
[ECO "A16"]
[WhiteElo "2560"]
[BlackElo "2332"]
[Annotator "TA"]
[PlyCount "99"]
[EventDate "2022.09.24"]
[EventType "team-tourn"]
[EventCountry "CRO"]
[SourceTitle "playchess.com"]
[Source "ChessBase"]
[SourceQuality "1"]
[TimeControl "40/5400+30:1800+30"]

{[%evp 9,99,25,27,0,0,0,18,30,22,33,8,14,9,4,43,45,55,47,106,87,91,111,107,113,107,107,116,85,99,104,104,105,110,53,51,54,37,29,33,14,18,10,22,0,0,0,4,0,25,22,21,0,0,0,9,6,0,0,13,0,6,7,6,0,10,0,8,0,15,0,0,0,0,0,0,0,0,0,0,0,0,0,0,0,195,154,122,136,12829,3968,12841,12839]} 1. Nf3 {[%emt 0:01:00]} Nf6 {[%emt 0:01:00]} 2. c4 {[%emt 0:00:00]} g6 {[%emt 0:02:30]} 3. Nc3 {[%emt 0:00:00]} d5 {[%emt 0:05:30]} 4. cxd5 {[%emt 0:00:30]} Nxd5 {[%emt 0:00:30]} 5. h4 {[%emt 0:00:30][%cal Bh2h4,Bh4h5][%mdl 32]} Bg7 {[%emt 0:04:30]} 6. h5 {[%emt 0:01:30] A16: English Opening: 1...Nf6 with ...d5.} Nc6 {[%emt 0:00:00] The main line 6...Nc6 scores better than 6...Nxc3.} 7. g3 {[%emt 0:02:30]} e5 {[%emt 0:03:00]} 8. Bg2 {[%emt 0:11:30] The position is equal.} Nxc3 {[%emt 0:06:30]} 9. bxc3 {[%emt 0:00:30]} e4 {[%emt 0:11:30]} 10. Nd4 {[%emt 0:02:30]} Nxd4 {[%emt 0:08:30]} 11. cxd4 {[%emt 0:00:30] [#]} Bxd4 $146 {[%emt 0:12:30]} ({Predecessor:} 11... O-O 12. e3 Re8 13. Rb1 b6 14. hxg6 hxg6 15. O-O Ba6 16. Re1 c5 17. dxc5 Bd3 {0-1 (42) Dill,X (2110)-Sorokin,A (2425) Prague 2016}) 12. Rb1 {[%emt 0:01:30]} O-O {[%emt 0:06:30]} 13. e3 {[%emt 0:13:30]} Bf6 {[%emt 0:08:30]} (13... Bg7 $14) 14. hxg6 $16 {[%emt 0:05:30]} hxg6 {[%emt 0:00:30]} 15. Bxe4 {[%emt 0:00:30]} Re8 {[%emt 0:00:30]} 16. Qc2 {[%emt 0:10:30][%cal Oe4g6] aiming for Bxg6!} (16. Bxb7 $2 Bxb7 17. Rh2 (17. Rxb7 $2 Qd5 $19) 17... Ba6 $19) 16... Kg7 {[%emt 0:06:30][%cal Ob7b6] [#]} 17. Bb2 $1 {[%emt 0:05:30] White is more active.} ({Not} 17. Bxb7 $2 Bxb7 18. Rxb7 Qd5 19. Rh7+ Kxh7 $19) 17... c6 {[%emt 0:04:17]} 18. d3 {[%emt 0:02:30]} Qe7 {[%emt 0:01:06]} 19. Rh4 {[%emt 0:13:30]} Rh8 {[%emt 0:06:16]} 20. Rxh8 {[%emt 0:02:30] The board is on fire.} Kxh8 {[%emt 0:00:09]} 21. Ke2 {[%emt 0:04:56]} ({White should play} 21. f4 $16) 21... Kg7 $14 {[%emt 0:00:31]} 22. Bxf6+ {[%emt 0:02:59]} Qxf6 {[%emt 0:00:42]} 23. Qb2 {[%emt 0:00:21]} Qxb2+ {[%emt 0:01:10]} 24. Rxb2 $11 {[%emt 0:00:30][%mdl 4096] Endgame KRB-KRB} Kf6 {[%emt 0:00:01]} 25. d4 {[%emt 0:02:10]} Ke7 {[%emt 0:01:02]} 26. Bd3 {[%emt 0:08:16]} Rb8 {[%emt 0:00:42]} 27. e4 {[%emt 0:00:49]} b6 {[%emt 0:01:55]} 28. Ke3 {[%emt 0:01:01]} Be6 {[%emt 0:00:45]} 29. Rc2 {[%emt 0:00:16]} Kd7 {[%emt 0:00:45]} 30. a3 {[%emt 0:00:44]} a5 {[%emt 0:00:50]} 31. Rc1 {[%emt 0:01:09]} Rh8 {[%emt 0:01:45]} 32. Rb1 {[%emt 0:00:44]} Kc7 {[%emt 0:00:27]} 33. Rc1 {[%emt 0:00:14]} Kd7 {[%emt 0:00:06]} 34. Rb1 {[%emt 0:03:26]} Kc7 {[%emt 0:00:07]} 35. Be2 {[%emt 0:01:32]} Rb8 {[%emt 0:02:32]} 36. Rc1 {[%emt 0:00:48]} Kd7 {[%emt 0:00:11]} 37. Bd3 {[%emt 0:00:25]} Rh8 {[%emt 0:00:18]} 38. Be2 {[%emt 0:00:36]} Rb8 {[%emt 0:00:08]} 39. Bf3 {[%emt 0:00:29]} b5 {[%emt 0:01:44]} 40. d5 {[%emt 0:00:00]} cxd5 {[%emt 0:00:00]} 41. exd5 {[%emt 0:01:05]} Bh3 {[%emt 0:09:01]} 42. Kd4 {[%emt 0:11:30]} b4 {[%emt 0:08:02]} 43. axb4 {[%emt 0:00:30]} Rxb4+ {[%emt 0:05:07]} 44. Kc5 {[%emt 0:03:35]} Rb2 {[%emt 0:06:02]} 45. Bd1 {[%emt 0:02:41]} Kd8 {[%emt 0:06:36]} 46. Ra1 {[%emt 0:02:54]} Bg2 $2 {[%emt 0:00:40]} (46... Rxf2 $11 {and Black has nothing to worry.} 47. Rxa5 Rd2) 47. f3 {[%emt 0:01:54]} Rd2 {[%emt 0:00:50] [#]} 48. Kd6 $1 {[%emt 0:01:01]} Kc8 $2 {[%emt 0:00:35][%mdl 8192]} (48... Ke8 $16) 49. Rb1 $18 {[%emt 0:04:59] Black must now prevent Ba4.} Rd3 {[%emt 0:01:10]} 50. Be2 {[%emt 0:00:58] Weighted Error Value: White=0.07 (flawless) /Black=0.14 (very precise)} 1-0

[Event "Croatian 1A League 2022"]
[Site "Porec"]
[Date "2022.09.24"]
[Round "1.5"]
[White "Krstic, Uros"]
[Black "Jovanic, Ognjen"]
[Result "0-1"]
[ECO "C45"]
[WhiteElo "2323"]
[BlackElo "2507"]
[Annotator "TA"]
[PlyCount "55"]
[EventDate "2022.09.24"]
[EventType "team-tourn"]
[EventCountry "CRO"]
[SourceTitle "playchess.com"]
[Source "ChessBase"]
[SourceQuality "1"]
[TimeControl "40/5400+30:1800+30"]

{[%evp 10,55,33,14,22,6,18,4,0,-3,7,-27,-20,-25,-29,-19,-34,-19,-9,-39,-51,-50,-42,-56,-26,-36,-29,-67,-37,-33,-33,-27,-27,-43,-8,-8,-12,-9,-6,-12,0,0,0,0,46,46,47,-81]} 1. e4 {[%emt 0:01:00]} e5 {[%emt 0:01:00]} 2. Nf3 {[%emt 0:00:00]} Nc6 {[%emt 0:00:30]} 3. d4 {[%emt 0:00:00]} exd4 {[%emt 0:00:30]} 4. Nxd4 {[%emt 0:00:30]} Bb4+ {[%emt 0:06:30]} 5. c3 {[%emt 0:02:30]} Bc5 {[%emt 0:00:30]} 6. Be3 {[%emt 0:02:30] [#] Nxc6 is the strong threat.} Bb6 {[%emt 0:00:00] C45: Scotch Game.} 7. Nd2 {[%emt 0:10:30]} Nf6 {[%emt 0:09:00] Against Qg4} 8. Be2 {[%emt 0:14:30]} O-O {[%emt 0:03:30] The position is equal.} 9. O-O {[%emt 0:12:30]} Re8 {[%emt 0:03:30]} 10. Qc2 {[%emt 0:03:30]} d5 {[%emt 0:26:30]} 11. Nxc6 {[%emt 0:24:30]} bxc6 {[%emt 0:00:30]} 12. Bg5 {[%emt 0:06:04]} h6 {[%emt 0:04:30]} 13. Bxf6 {[%emt 0:02:20]} Qxf6 {[%emt 0:00:00]} 14. Bf3 {[%emt 0:00:07]} Ba6 {[%emt 0:14:00]} 15. Rfe1 {[%emt 0:04:11]} Rad8 {[%emt 0:01:30] [#]} 16. exd5 $146 {[%emt 0:09:53]} ({Predecessor:} 16. Rad1 Qh4 17. g3 Qf6 18. Kg2 h5 19. h4 g6 20. b4 Bc8 21. c4 dxc4 22. Nxc4 Bd4 23. Rd3 Qe6 24. Kg1 Ba6 {½-½ (24) Ker,A (2330)-Green,E (2234) Wellington 2013}) 16... Rxe1+ {[%emt 0:06:33]} 17. Rxe1 {[%emt 0:00:01]} cxd5 {[%emt 0:00:27]} 18. Qa4 {[%emt 0:01:50]} Bd3 {[%emt 0:02:04]} (18... g6 $5) 19. Re8+ {[%emt 0:01:30]} Rxe8 {[%emt 0:01:16]} 20. Qxe8+ {[%emt 0:00:02]} Kh7 {[%emt 0:00:08]} 21. g3 {[%emt 0:00:43]} Qe6 {[%emt 0:08:56]} 22. Qxe6 {[%emt 0:00:05]} fxe6 $11 {[%emt 0:00:02][%mdl 4096] Endgame KBB-KBN} 23. Bg4 {[%emt 0:00:17]} e5 {[%emt 0:03:51]} 24. Be6 {[%emt 0:01:44]} c6 {[%emt 0:00:43]} 25. Bd7 {[%emt 0:00:04]} e4 {[%emt 0:02:36] [#] Strongly threatening ...e3.} 26. Nf1 {[%emt 0:01:01] Prevents e3.} ({Don't go for} 26. Bxc6 $2 e3 27. fxe3 Bxe3+ 28. Kg2 Bxd2 $19) 26... c5 {[%emt 0:00:10]} (26... d4 $11 27. cxd4 Bxd4) 27. Bc6 $1 $14 {[%emt 0:01:07]} d4 {[%emt 0:01:13] And now ...c4 would win.} 28. Kg2 {[%emt 0:01:31] Weighted Error Value: White=0.09 (flawless) /Black=0.11 (very precise)} (28. Nd2 $14 {was forced to keep a grip.}) 0-1